bitfinex/quotes_ETHUSD_20260107
["timestamp","ask_amount","ask_price","bid_price","bid_amount"]
[1767811141695,0.002,3157.6,3157.2,0.49836151]
[1767811143203,0.002,3157.6,3157.0,0.61079238]
[1767811143409,0.002,3157.6,3156.8,5.2755817]
[1767811143696,2.10288988,3157.6,3156.8,5.2755817]
[1767811144394,2.10288988,3157.6,3156.8,2.10786832]
[1767811145680,2.10088988,3157.4,3156.7,3.16782128]
[1767811146391,3.16706254,3157.5,3156.7,3.16782128]
[1767811146690,3.16706254,3157.5,3156.7,6.12006288]
[1767811146919,3.16706254,3157.5,3156.8,2.10786832]
[1767811148692,2.19563662,3157.5,3156.6,5.29402955]
[1767811148871,2.19563662,3157.5,3156.6,2.12611256]
[1767811149268,2.19563662,3157.5,3156.4,2.12611256]
[1767811149473,2.19563662,3157.3,3156.4,5.29421614]
[1767811150912,5.36295285,3157.3,3156.4,8.4623824]
[1767811151196,3.16706254,3157.5,3156.5,2.12611256]
[1767811151918,3.16897664,3157.6,3156.5,2.12611256]
[1767811152067,3.16897664,3157.6,3156.7,2.12711256]
[1767811152773,3.16897664,3157.6,3156.8,5.29387738]
[1767811152974,0.002,3157.6,3156.9,2.12611256]
[1767811155707,0.002,3157.6,3157.0,6.33512828]
[1767811155895,0.002,3157.6,3157.1,2.12611256]
[1767811156607,0.002,3157.6,3157.0,4.09668822]
[1767811156807,0.002,3157.6,3157.0,3.05523664]
[1767811158113,0.002,3157.6,3157.1,3.16746381]
[1767811159207,0.83,3158.2,3157.1,3.16746381]
[1767811159208,3.1662121,3158.4,3157.6,2.12611256]
[1767811159415,3.1662121,3158.4,3157.6,5.90611256]
[1767811159709,3.1662121,3158.4,3157.6,6.57972382]
[1767811159889,3.16621628,3158.4,3157.6,6.57972382]
[1767811160090,3.16621628,3158.4,3157.6,9.74668067]
[1767811161583,2.19563662,3158.4,3157.6,9.74668067]
[1767811162907,2.19563662,3158.4,3157.6,6.57972382]
[1767811163298,2.19563662,3158.4,3157.6,9.74667964]
[1767811163497,2.19563662,3158.4,3157.7,1.37436838]
[1767811164240,5.36188352,3158.4,3157.7,1.37436838]
[1767811164412,5.36188352,3158.4,3157.7,5.15436838]
[1767811164599,0.002,3158.1,3157.7,5.15436838]
[1767811165641,0.002,3158.1,3157.7,7.28048094]
[1767811167341,0.002,3158.1,3157.7,10.44731266]
[1767811167542,0.002,3158.1,3157.8,1.1121048]
[1767811168637,0.002,3158.1,3157.8,6.40497782]
[1767811168841,0.002,3158.1,3157.9,2.12611256]
[1767811171047,0.002,3158.1,3158.0,2.12611256]
[1767811171250,0.002,3158.4,3158.1,2.12611256]
[1767811174505,0.002,3158.4,3158.2,0.83]
[1767811174744,0.002,3158.4,3158.2,3.00759417]
[1767811176736,0.002,3158.4,3158.3,2.17759417]
[1767811181284,0.002,3158.4,3158.2,0.83]
[1767811183578,2.25253544,3158.4,3158.2,0.83]
[1767811183778,2.25253544,3158.4,3157.8,5.34433018]
[1767811183980,0.002,3158.4,3158.0,0.83]
[1767811185468,0.002,3158.4,3158.0,3.99655484]
[1767811186173,0.002,3158.4,3158.0,0.83]
[1767811186800,0.002,3158.4,3158.0,3.99655565]
[1767811187171,0.002,3158.4,3158.0,6.17414982]
[1767811187373,0.002,3158.4,3158.1,3.48966789]
[1767811187569,0.002,3158.5,3158.2,2.17759417]
[1767811187774,2.25053544,3159.1,3158.4,2.17759417]
[1767811188075,0.002,3159.2,3158.6,2.17759417]
[1767811189873,0.002,3158.9,3158.7,2.17759417]
[1767811190074,0.002,3159.2,3158.8,0.53435184]
[1767811190373,0.002,3159.2,3158.8,2.71194601]
[1767811192687,0.002,3159.2,3158.8,5.87769896]
[1767811192983,0.002,3159.2,3158.8,2.71194601]
[1767811194498,0.002,3159.2,3158.8,0.53435184]
[1767811194887,2.25253544,3159.2,3158.6,2.17759417]
[1767811195396,2.25253544,3159.2,3158.6,5.34355327]
[1767811196604,2.25253544,3159.2,3158.6,0.83]
[1767811196605,2.25053544,3159.1,3158.6,0.83]
[1767811197575,0.002,3159.2,3158.6,6.17354778]
[1767811197801,0.002,3159.2,3158.7,2.79494895]
[1767811198608,0.002,3159.2,3158.8,2.17759417]
[1767811200897,0.002,3159.2,3158.9,3.16565893]
[1767811201101,0.002,3159.2,3158.8,5.34330185]
[1767811201305,0.002,3159.2,3158.9,2.17894464]
[1767811201502,0.002,3159.2,3159.0,0.53446523]
[1767811203428,0.002,3159.7,3159.1,2.35391981]
[1767811203630,2.39144831,3160.3,3159.4,2.35391981]
[1767811203793,2.39144831,3160.3,3159.7,2.35391981]
[1767811203998,2.39144831,3160.3,3159.3,3.78]
[1767811203999,0.002,3160.4,3159.8,2.58931179]
[1767811204216,2.39344831,3160.4,3159.8,2.58931179]
[1767811204510,2.39344831,3160.4,3159.8,0.23539198]
[1767811207033,2.39144831,3160.3,3159.8,0.23539198]
[1767811207534,2.39144831,3159.9,3158.4,3.78]
[1767811207829,2.39144831,3159.3,3157.4,3.16710737]
[1767811208029,2.39144831,3159.6,3157.7,2.35391981]
[1767811208229,2.39144831,3159.6,3158.5,2.35391981]
[1767811208430,2.39144831,3160.0,3158.8,2.35391981]
[1767811208740,2.39144831,3160.0,3159.0,2.35391981]
[1767811208907,2.39144831,3160.2,3158.9,0.83]
[1767811209107,2.39144831,3160.2,3159.0,2.96718946]
[1767811209307,2.39144831,3160.2,3159.0,0.61326965]
[1767811209527,5.55590513,3160.1,3159.1,5.51932609]
[1767811209730,2.39144831,3160.0,3159.1,5.51932609]
[1767811210034,2.39144831,3160.0,3159.1,6.34932609]
[1767811210234,2.39144831,3160.0,3158.9,0.83]
[1767811210532,2.39144831,3160.0,3158.8,3.99571999]
[1767811210910,2.39144831,3160.0,3158.8,0.83]
[1767811211129,2.39144831,3160.0,3158.9,3.1655879]
[1767811211434,2.39144831,3160.0,3159.0,3.16555237]
[1767811211632,1.58881564,3159.8,3159.0,3.16555237]
[1767811211836,3.16468871,3159.9,3158.8,2.35391981]
[1767811212038,4.75360922,3159.8,3158.8,2.35391981]
[1767811212831,7.9184028,3159.8,3158.8,2.35391981]
[1767811213036,1.59354245,3159.7,3158.8,2.35391981]
[1767811213738,1.59354245,3159.7,3158.5,2.35391981]
[1767811214143,4.76318517,3159.6,3158.6,5.51987941]
[1767811214313,7.92814275,3159.6,3158.6,2.35391981]
[1767811214514,4.76318517,3159.6,3158.6,2.35391981]
[1767811215128,1.60282568,3159.5,3158.6,2.35391981]
[1767811215333,2.07960401,3159.5,3158.6,2.35391981]
[1767811216968,5.24470905,3159.5,3158.6,5.51986824]
[1767811217155,2.07960401,3159.5,3158.7,2.35391981]
[1767811217360,1.60282568,3159.5,3158.7,2.35391981]
[1767811217539,3.16467437,3159.9,3158.8,2.35391981]
[1767811217732,3.16467437,3159.9,3158.7,5.30269651]
[1767811217733,0.002,3160.0,3159.2,2.35391981]
[1767811217957,0.002,3160.3,3159.7,2.35391981]
[1767811218164,0.002,3160.3,3159.8,0.23539198]
[1767811218466,0.002,3160.3,3159.8,2.58931179]
[1767811219554,0.002,3160.3,3159.8,0.23539198]
[1767811219758,0.002,3160.3,3159.6,5.51885082]
[1767811220267,0.002,3160.3,3159.7,5.51873904]
[1767811220643,0.002,3160.3,3159.7,2.35391981]
[1767811221248,0.002,3160.3,3159.8,2.35391981]
[1767811221872,0.002,3160.3,3159.8,2.90579193]
[1767811222188,0.002,3160.3,3159.8,2.35391981]
[1767811222490,0.002,3160.3,3159.8,5.51867177]
[1767811222689,0.002,3160.3,3159.9,2.35391981]
[1767811224206,0.002,3160.3,3159.8,3.78]
[1767811225092,1.64817487,3160.3,3159.8,3.78]
[1767811225288,0.002,3160.0,3159.8,3.78]
[1767811225867,0.002,3160.0,3159.6,3.78]
[1767811226966,0.002,3160.0,3159.6,6.13391981]
[1767811228582,0.002,3160.0,3159.6,3.78]
[1767811231902,0.002,3160.0,3159.5,3.78]
[1767811232071,0.002,3160.0,3159.6,2.34610852]
[1767811233308,0.002,3160.0,3159.7,2.34610852]
[1767811235399,0.002,3160.0,3159.8,2.34610852]
[1767811236680,0.002,3160.5,3160.1,2.34610852]
[1767811236895,1.69756101,3160.5,3159.7,8.67580186]
[1767811237223,0.002,3160.5,3160.1,2.34610852]
[1767811237581,0.002,3160.3,3160.1,2.34610852]
[1767811240223,0.002,3160.3,3160.0,0.001]
[1767811240411,1.70771019,3160.3,3159.5,2.34610852]
[1767811240714,1.87868121,3160.3,3159.3,6.34134196]
[1767811241215,1.87868121,3160.3,3159.4,3.16514162]
[1767811242237,5.04294271,3160.3,3159.4,2.34610852]
[1767811243325,5.04294271,3160.3,3159.4,5.51123581]
[1767811243641,1.87868121,3160.3,3159.4,5.51123581]
[1767811243839,1.87868121,3160.3,3159.5,2.34610852]
[1767811244141,1.70771019,3160.3,3159.6,2.8972321]
[1767811244301,0.002,3160.3,3159.6,2.8972321]
[1767811245416,0.002,3160.3,3159.7,2.34610852]
[1767811247947,0.002,3160.3,3159.6,3.71600531]
[1767811247948,0.002,3160.3,3159.6,2.8972321]
[1767811248250,0.002,3160.3,3159.8,2.34610852]
[1767811249223,0.002,3160.3,3159.9,2.34710852]
[1767811249748,0.002,3160.3,3160.0,2.34610852]
[1767811250620,0.002,3160.3,3159.4,2.34610852]
[1767811250621,1.74061106,3160.3,3159.4,2.34610852]
[1767811250822,0.17406111,3160.2,3159.5,2.34610852]
[1767811252368,3.33842698,3160.2,3159.5,2.34610852]
[1767811252565,0.17406111,3160.2,3159.5,2.34610852]
[1767811252882,0.002,3160.3,3159.5,2.34610852]
[1767811253187,3.16626419,3160.3,3159.5,2.34610852]
[1767811254282,1.74693027,3160.2,3159.2,2.34610852]
[1767811254578,1.74693027,3160.2,3159.1,2.34610852]
[1767811254778,1.74963796,3160.1,3159.1,2.34610852]
[1767811255082,1.74963796,3160.1,3158.9,2.34610852]
[1767811255252,1.74963796,3160.1,3159.0,2.34610852]
[1767811255782,1.74963796,3160.1,3159.1,2.34610852]
[1767811256083,2.01024442,3160.0,3159.1,2.34610852]
[1767811256279,5.17487824,3160.0,3159.1,2.34610852]
[1767811258258,1.75757009,3159.9,3159.1,2.34610852]
[1767811260855,3.16475726,3159.8,3159.4,0.001]
[1767811261180,4.92426856,3159.9,3159.4,0.001]
[1767811262079,1.75957009,3159.9,3159.4,0.001]
[1767811263764,1.77742931,3159.8,3158.6,2.42582211]
[1767811263971,1.77742931,3159.8,3158.7,2.42582211]
[1767811264659,1.77742931,3159.8,3158.8,3.25582211]
[1767811264855,1.7797916,3159.6,3158.9,2.42582211]
[1767811265096,1.7797916,3159.4,3158.3,2.42582211]
[1767811265798,0.95216248,3159.3,3158.1,3.16645138]
[1767811266286,0.95216248,3159.3,3158.0,0.83]
[1767811266485,0.95216248,3159.3,3158.1,0.83]
[1767811266703,0.17821625,3159.2,3158.2,2.42582211]
[1767811267075,3.34362172,3159.2,3158.3,2.42582211]
[1767811268303,0.9586283,3159.1,3158.0,2.42582211]
[1767811268892,0.9586283,3159.1,3158.1,2.42582211]
[1767811269573,3.16555872,3159.0,3158.1,2.42582211]
[1767811270083,0.96501886,3159.6,3158.1,2.42582211]
[1767811270288,0.83,3159.6,3158.3,2.42582211]
[1767811270798,1.7981408,3159.6,3158.3,2.42582211]
[1767811271288,7.29765532,3159.8,3158.3,2.42582211]
[1767811271602,7.29765532,3159.8,3158.7,2.42582211]
[1767811273202,0.002,3159.3,3158.7,2.42582211]
[1767811273703,0.002,3159.3,3158.8,2.42582211]
[1767811277616,0.002,3159.3,3158.9,2.42582211]
[1767811280509,0.002,3159.3,3158.4,2.75140432]
[1767811280713,0.99949917,3159.3,3158.8,0.83]
[1767811282429,1.00025159,3159.1,3158.0,5.59231608]
[1767811282619,1.0029725,3159.1,3158.1,2.42582211]
[1767811282938,1.0029725,3158.9,3158.1,0.83]
[1767811283424,1.0029725,3158.7,3158.1,0.83]
[1767811284125,1.0029725,3158.7,3157.6,2.42582211]
[1767811284329,1.0029725,3158.7,3157.7,3.25582211]
[1767811284626,1.00566259,3158.6,3157.7,3.25582211]
[1767811285648,3.16605983,3158.5,3157.7,3.25582211]
[1767811286127,4.17697808,3158.5,3157.7,3.25582211]
[1767811286507,7.34303791,3158.5,3157.7,3.25582211]
[1767811286704,1.01348639,3158.4,3157.7,2.42582211]
[1767811287002,1.01348639,3158.4,3157.8,0.83]
[1767811287928,1.01605947,3157.9,3157.1,0.001]
[1767811289833,4.18791736,3157.8,3157.1,0.001]
[1767811290234,1.0211557,3158.2,3157.1,2.42682211]
[1767811290437,6.33211966,3158.5,3157.2,2.42582211]
[1767811291808,7.36045659,3158.6,3157.3,2.52114294]
[1767811293414,6.3319192,3158.6,3157.3,2.52114294]
[1767811293930,7.36504292,3158.7,3157.4,2.52114294]
[1767811294132,1.03332418,3158.6,3157.6,2.52114294]
[1767811296312,1.03800542,3158.4,3157.3,2.52114294]
[1767811296508,1.03800542,3158.4,3157.4,0.83]
[1767811297031,1.03800542,3158.4,3157.6,0.001]
[1767811297237,1.04025902,3158.3,3157.6,0.001]
[1767811297538,3.16605983,3158.5,3157.7,2.52114294]
[1767811298315,3.1659596,3158.6,3157.7,2.52114294]
[1767811298640,6.3319192,3158.6,3157.7,2.52114294]
[1767811300217,7.37887843,3158.6,3157.7,2.52114294]
[1767811301061,10.54483803,3158.6,3157.7,2.52114294]
[1767811301210,1.04914076,3158.5,3157.7,2.52114294]
[1767811301917,3.1659596,3158.6,3157.7,2.52114294]
[1767811302228,3.1659596,3158.6,3157.8,2.52114294]
[1767811302443,3.1659596,3158.6,3158.0,2.52114294]
[1767811302750,3.16587313,3158.7,3158.0,2.52114294]
[1767811302751,7.38656891,3159.0,3158.0,2.52114294]
[1767811302960,1.05345147,3158.9,3157.7,2.52114294]
[1767811303119,1.05345147,3158.9,3158.1,0.83]
[1767811303322,9.49867616,3159.0,3158.1,0.83]
[1767811303323,6.33311744,3159.0,3158.2,2.52114294]
[1767811304019,7.38866279,3159.0,3158.2,2.52114294]
[1767811304852,1.05761545,3158.9,3158.1,0.83]
[1767811305054,1.05761545,3158.9,3157.6,0.001]
[1767811305055,1.05761545,3158.9,3157.7,2.52114294]
[1767811305255,1.05761545,3158.7,3157.7,3.35114294]
[1767811307355,1.06172881,3158.5,3157.7,0.83]
[1767811307541,1.06172881,3158.5,3157.3,0.83]
[1767811307931,1.06172881,3158.5,3157.3,3.35114294]
[1767811308531,6.3319192,3158.6,3157.5,2.52114294]
[1767811309048,9.4978788,3158.6,3157.9,0.001]
[1767811309240,10.56358785,3158.6,3157.9,0.001]
[1767811309761,1.06765953,3158.5,3157.9,0.001]
[1767811310357,1.06765953,3158.5,3157.3,0.83]
[1767811310358,1.06765953,3158.5,3157.6,3.16694418]
[1767811310657,6.3319192,3158.6,3157.7,2.52114294]
[1767811312475,6.3319192,3158.6,3157.9,2.52114294]
[1767811312661,7.40041254,3158.7,3157.9,2.52114294]
[1767811312866,3.16785937,3158.7,3157.9,2.52114294]
[1767811313162,0.002,3158.7,3157.9,2.52114294]
[1767811313359,3.16789089,3158.7,3157.9,2.52114294]
[1767811313560,3.16789089,3158.7,3158.1,2.52114294]
[1767811314782,0.002,3158.7,3158.1,2.52114294]
[1767811317153,0.002,3158.7,3158.2,3.35114294]
[1767811318088,0.002,3158.7,3158.3,2.52114294]
[1767811318253,0.002,3158.7,3158.4,2.52114294]
[1767811318458,0.002,3159.0,3158.7,2.52114294]
[1767811318682,0.002,3159.0,3158.7,2.51995921]
[1767811320595,0.002,3159.3,3158.7,2.51995921]
[1767811320761,0.002,3159.3,3158.9,2.52114294]
[1767811321383,0.002,3159.3,3159.0,2.40634565]
[1767811326294,0.002,3159.3,3158.6,2.44483299]
[1767811326493,0.002,3159.3,3158.9,0.83]
[1767811327407,0.002,3159.3,3158.9,3.27483299]
[1767811330328,1.10947941,3159.3,3158.7,0.83]
[1767811331211,3.16535831,3159.2,3158.7,0.83]
[1767811331611,4.27580516,3159.2,3158.7,0.83]
[1767811332012,1.11044685,3159.1,3158.7,0.83]
[1767811332214,3.16535831,3159.2,3158.7,0.83]
[1767811332801,4.2772781,3159.2,3158.7,0.83]
[1767811333004,4.2772781,3159.2,3159.0,1.01e-06]
[1767811335027,7.44263641,3159.2,3158.7,0.83]
[1767811335234,1.11481903,3159.1,3158.7,0.83]
[1767811335746,4.28037124,3159.1,3158.7,0.83]
[1767811338244,1.11897628,3159.0,3158.3,3.78]
[1767811339824,1.11897628,3159.0,3158.1,2.44483299]
[1767811340247,4.2873833,3158.9,3158.1,2.44483299]
[1767811340615,7.45304223,3158.9,3158.1,2.44483299]
[1767811341349,4.2873833,3158.9,3158.1,2.44483299]
[1767811343261,1.12575557,3158.8,3157.9,3.99660404]
[1767811343561,1.12575557,3158.8,3158.0,2.44483299]
[1767811344140,1.12575557,3158.8,3158.1,2.44483299]
[1767811345065,1.12575557,3158.8,3158.4,1.01e-06]
[1767811346258,4.29152099,3158.8,3158.4,1.01e-06]
[1767811351966,3.16576542,3158.8,3158.4,1.01e-06]
[1767811354372,1.14044045,3158.9,3158.4,1.01e-06]
[1767811354667,1.14044045,3158.9,3157.8,2.40816178]
[1767811355048,1.14044045,3158.9,3157.9,2.40816178]
[1767811355249,1.33862155,3158.8,3157.9,2.40816178]
[1767811356568,3.16585937,3158.7,3157.9,2.40816178]
[1767811357267,3.16585937,3158.7,3158.4,0.001]
[1767811359280,3.16585937,3158.7,3158.2,2.40816178]
[1767811364355,1.15120046,3158.6,3157.9,2.40816178]
[1767811364992,1.15120046,3158.6,3157.7,2.40816178]
[1767811365175,1.15120046,3158.6,3157.5,2.40816178]
[1767811365381,9.49757811,3158.7,3157.5,2.40816178]
[1767811365382,1.15216998,3158.4,3157.5,2.40816178]
[1767811366196,1.15312872,3158.2,3157.2,2.40816178]
[1767811366496,1.15312872,3158.0,3157.2,2.40816178]
[1767811367819,1.15509351,3158.2,3157.3,2.40816178]
[1767811368105,3.16646084,3158.1,3157.3,2.40816178]
[1767811369007,3.16646084,3158.1,3157.5,2.40716481]
[1767811371833,1.1599258,3157.8,3157.1,0.001]
[1767811372133,1.1599258,3157.6,3156.7,0.001]
[1767811372537,1.1599258,3157.6,3156.3,2.40816178]
[1767811373232,2.44606453,3157.4,3156.2,0.001]
[1767811373603,2.44606453,3157.4,3156.2,2.40916178]
[1767811373805,0.83,3157.5,3156.2,2.40916178]
[1767811373806,2.44606453,3157.2,3156.2,2.40916178]
[1767811374154,2.44606453,3157.0,3156.2,2.40916178]
[1767811374646,2.44606453,3157.0,3156.2,0.001]
[1767811375227,2.44606453,3156.2,3154.2,3.35875471]
[1767811375434,2.44606453,3156.0,3154.6,2.57340926]
[1767811375735,2.44606453,3156.0,3154.6,2.40816178]
[1767811375936,2.44606453,3156.0,3154.7,2.40816178]
[1767811376138,3.1686682,3155.9,3154.9,2.40816178]
[1767811376309,2.44606453,3156.3,3155.0,2.40816178]
[1767811377206,2.44606453,3156.3,3155.1,2.40816178]
[1767811377520,2.44606453,3156.3,3154.5,3.17003366]
[1767811377521,2.44606453,3155.9,3154.6,2.40816178]
[1767811377852,2.44606453,3155.7,3154.6,2.40816178]
[1767811378267,2.44606453,3155.5,3154.6,2.40816178]
[1767811378414,2.44606453,3155.5,3153.8,2.40816178]
[1767811378609,2.44606453,3155.5,3153.9,2.40816178]
[1767811378863,2.44606453,3155.3,3154.0,2.64897796]
[1767811379025,0.83,3155.2,3154.1,2.40816178]
[1767811379340,2.44606453,3155.1,3154.0,3.41138193]
[1767811379540,0.83,3155.2,3154.1,2.74929997]
[1767811379744,0.83,3155.2,3154.2,2.40816178]
[1767811380145,3.16930295,3155.3,3154.3,2.40816178]
[1767811380344,0.83,3155.2,3154.3,2.40816178]
[1767811381119,0.83,3155.2,3154.2,3.170376]
[1767811381120,0.83,3155.2,3154.5,2.40916178]
[1767811381520,3.81345211,3155.4,3154.5,2.40916178]
[1767811381745,7.16839916,3155.4,3154.5,2.40916178]
[1767811382224,2.57663076,3155.3,3154.5,0.001]
[1767811383656,2.57663076,3155.3,3153.3,3.17124243]
[1767811383657,2.57663076,3154.9,3153.4,3.17114977]
[1767811383883,5.30385565,3155.0,3153.2,3.17137761]
[1767811383884,2.57663076,3154.7,3153.3,2.52191682]
[1767811384029,2.57663076,3154.7,3153.2,3.17137761]
[1767811384337,3.17017499,3154.4,3153.4,2.52191682]
[1767811384655,3.17009804,3154.5,3153.4,2.52191682]
[1767811384872,2.57663076,3155.7,3153.4,2.52191682]
[1767811385166,3.40763076,3155.6,3153.6,2.52191682]
[1767811385364,2.91739384,3155.5,3153.7,2.80898835]
[1767811385532,2.57663076,3155.4,3153.7,2.80898835]
[1767811385727,2.57663076,3155.4,3153.7,0.28707153]
[1767811386034,1.17176308,3155.5,3153.2,2.52191682]
[1767811386035,2.57663076,3154.6,3153.2,2.52191682]
[1767811386233,6.34055098,3154.3,3153.2,2.52191682]
[1767811386452,7.03831428,3154.3,3153.2,2.7741085]
[1767811386753,3.86803879,3154.3,3153.3,2.52191682]
[1767811387984,7.03831428,3154.3,3153.3,2.52191682]
[1767811388344,7.03831428,3154.3,3153.2,2.52191682]
[1767811388345,9.61494504,3154.3,3153.2,2.52191682]
[1767811388569,0.34076308,3154.2,3153.3,5.69318674]
[1767811389545,3.17024023,3154.4,3153.4,2.52191682]
[1767811389744,4.00124023,3154.4,3153.4,2.52191682]
[1767811389980,7.17147684,3154.4,3153.4,2.52191682]
[1767811390187,4.00123661,3154.4,3153.4,2.52191682]
[1767811390570,7.17147322,3154.4,3153.4,2.52191682]
[1767811390780,7.17147322,3154.4,3153.5,2.52191682]
[1767811391303,3.17023661,3154.4,3153.6,3.0912248]
[1767811391672,3.17011832,3154.5,3153.6,3.0912248]
[1767811392155,6.34023664,3154.5,3153.6,3.0912248]
[1767811393068,3.17011832,3154.5,3153.6,3.0912248]
[1767811393597,3.17011832,3154.5,3153.7,2.52191682]
[1767811394009,6.37193351,3154.5,3153.7,2.52191682]
[1767811394160,3.17011832,3154.5,3153.7,2.52191682]
[1767811394671,0.001,3154.1,3153.7,2.52191682]
[1767811395089,0.001,3154.1,3153.8,2.52191682]
[1767811395507,2.57663076,3155.6,3154.1,2.52191682]
[1767811395683,7.20085427,3155.5,3154.1,2.52191682]
[1767811396013,7.1691574,3155.5,3154.1,2.52191682]
[1767811396403,0.03169687,3155.4,3154.1,2.52191682]
[1767811396612,3.16937119,3155.2,3154.2,3.170376]
[1767811396815,6.37043925,3155.2,3154.3,2.52191682]
[1767811397016,6.33874238,3155.2,3154.3,2.52191682]
[1767811397201,0.31844095,3155.1,3154.3,2.52191682]
[1767811397987,6.57674631,3155.5,3154.3,2.52191682]
[1767811398192,4.000094,3155.5,3154.3,2.52191682]
[1767811398436,3.99986903,3155.7,3154.4,2.52191682]
[1767811398604,7.16873806,3155.7,3154.6,2.52191682]
[1767811398819,7.88561187,3155.7,3154.8,2.52191682]
[1767811399735,0.03169687,3155.6,3154.8,2.52191682]
[1767811401319,3.16906987,3155.5,3154.8,2.52191682]
[1767811401994,6.33813974,3155.5,3154.8,2.52191682]
[1767811402193,6.65979231,3155.5,3154.8,2.52191682]
[1767811402744,0.32165257,3155.5,3154.9,2.52191682]
[1767811402941,3.20068268,3155.6,3154.9,2.52191682]
[1767811404351,6.36966849,3155.6,3154.9,2.52191682]
[1767811404552,6.33797162,3155.6,3154.9,2.52191682]
[1767811405727,0.03169687,3155.5,3154.7,2.52191682]
[1767811405928,3.20081426,3155.5,3154.8,2.52191682]
[1767811406226,3.16911739,3155.5,3154.8,2.52191682]
[1767811407032,3.20081426,3155.5,3154.8,2.52191682]
[1767811407234,7.09001117,3155.5,3154.8,2.52191682]
[1767811407436,6.33823478,3155.5,3154.8,2.52191682]
[1767811407741,0.001,3155.2,3154.7,2.52191682]
[1767811408131,0.001,3155.2,3154.5,2.52191682]
[1767811409048,0.001,3155.2,3154.6,2.52191682]
[1767811409934,0.001,3155.2,3154.6,5.6918658]
[1767811410165,0.001,3155.2,3154.7,2.52191682]
[1767811412630,0.001,3155.2,3154.5,2.42334629]
[1767811413036,0.001,3155.2,3154.6,2.42334629]
[1767811414754,0.001,3155.2,3154.7,2.42334629]
[1767811415053,3.1685678,3156.0,3155.2,2.42334629]
[1767811415253,8.93649362,3156.0,3155.2,2.42334629]
[1767811415448,8.90479675,3156.0,3155.2,2.42334629]
[1767811415643,2.59935802,3155.9,3154.3,2.42334629]
[1767811415832,2.56766115,3155.7,3154.3,2.42334629]
[1767811416033,2.56766115,3155.5,3154.3,2.42334629]
[1767811416234,2.56766115,3155.3,3154.3,2.42334629]
[1767811416461,2.59935802,3155.2,3154.3,2.42334629]
[1767811416832,2.59935802,3155.2,3153.7,0.831]
[1767811416833,2.56766115,3155.0,3154.1,2.42334629]
[1767811417033,2.59935802,3155.0,3154.2,2.42334629]
[1767811417979,3.16947164,3155.1,3154.4,2.42334629]
[1767811418538,3.16941068,3155.2,3154.6,2.42334629]
[1767811419045,0.831,3156.0,3154.7,2.42334629]
[1767811419252,2.59935802,3155.9,3154.7,2.42334629]
[1767811421059,6.33753722,3155.8,3154.8,2.42334629]
[1767811421261,0.03169687,3155.7,3154.8,2.42334629]
[1767811422741,6.3379389,3155.6,3154.8,2.42334629]
[1767811424876,3.16876861,3155.8,3154.8,2.42334629]
[1767811425207,7.16853722,3155.8,3154.9,2.42334629]
[1767811425379,0.03169687,3155.7,3154.9,2.42334629]
[1767811426187,2.59935802,3155.7,3154.6,2.66568092]
[1767811426803,2.56766115,3155.5,3154.5,3.782]
[1767811426998,2.56766115,3155.3,3154.5,3.782]
[1767811427165,2.59935802,3155.2,3154.5,0.002]
[1767811428788,6.33894328,3155.1,3154.5,0.002]
[1767811428992,0.03169687,3155.0,3154.5,0.002]
[1767811429401,0.03169687,3155.0,3154.3,2.42334629]
[1767811429597,8.90660443,3155.1,3154.3,2.42334629]
[1767811429912,2.56766115,3155.0,3154.2,2.42334629]
[1767811430295,0.03169687,3154.9,3154.2,2.42334629]
[1767811430791,5.73731744,3155.0,3154.2,2.42334629]
[1767811431197,3.16965629,3155.0,3154.2,2.42334629]
[1767811432613,3.16965629,3155.0,3154.3,2.42334629]
[1767811433054,3.16947164,3155.1,3154.5,2.42534629]
[1767811435115,3.16927075,3155.3,3154.5,2.42534629]
[1767811435722,3.16927075,3155.3,3154.5,5.59541567]
[1767811436046,3.16921306,3155.4,3154.6,2.45134388]
[1767811436344,3.16921306,3155.4,3154.6,2.42334629]
[1767811437020,6.33816404,3155.5,3154.8,2.42334629]
[1767811437226,7.05508044,3155.5,3154.8,2.42334629]
[1767811437923,3.88599842,3155.5,3154.8,2.42334629]
[1767811438943,3.16901496,3155.6,3154.8,2.42334629]
[1767811439149,4.00001496,3155.6,3154.8,2.42334629]
[1767811439346,4.00001496,3155.6,3154.8,5.59309487]
[1767811439648,4.00001496,3155.6,3154.9,2.42334629]
[1767811440770,3.16901496,3155.6,3154.9,2.42334629]
[1767811441156,6.33802992,3155.6,3154.9,2.42334629]
[1767811441359,8.96027612,3155.7,3154.9,2.42334629]
[1767811442362,2.68087734,3155.6,3154.9,2.42334629]
[1767811444656,0.001,3155.3,3154.9,2.42334629]
[1767811456973,0.001,3155.0,3154.9,2.42334629]
[1767811462396,2.68187734,3155.0,3154.2,2.43487668]
[1767811462690,2.68187734,3155.0,3154.3,2.43487668]
[1767811462913,0.27135742,3154.9,3154.3,2.43487668]
[1767811463783,2.95223476,3154.9,3154.3,2.43487668]
[1767811464229,2.95223476,3154.9,3154.1,0.002]
[1767811464389,5.85075086,3154.7,3154.1,0.002]
[1767811464592,9.02062438,3154.7,3154.1,0.002]
[1767811466530,3.170596,3155.0,3153.6,0.002]
[1767811466531,2.68087734,3154.5,3153.6,0.002]
[1767811466724,2.68087734,3154.2,3153.3,2.46858948]
[1767811466892,2.94896507,3154.1,3153.3,2.43687668]
[1767811467213,2.68087734,3154.1,3153.3,2.43687668]
[1767811468414,2.68087734,3154.1,3153.9,0.00100101]
[1767811468598,2.68087734,3154.3,3153.5,2.43487668]
[1767811468987,2.68087734,3154.3,3153.5,2.43687668]
[1767811469513,2.68087734,3154.3,3153.5,0.002]
[1767811470733,2.68087734,3154.1,3153.5,0.002]
[1767811471049,2.68087734,3154.1,3153.0,2.43487668]
[1767811471200,2.68087734,3153.9,3153.0,2.43487668]
[1767811472135,1.25492407,3154.0,3153.1,2.57840914]
[1767811472343,1.25492407,3154.0,3152.9,0.002]
[1767811472344,0.42392407,3154.0,3153.2,2.57840914]
[1767811472503,3.17021421,3154.4,3153.4,2.57840914]
[1767811472833,2.54628958,3154.3,3153.5,2.57840914]
[1767811473833,2.57798645,3154.3,3153.2,2.57840914]
[1767811474309,2.54628958,3154.3,3152.9,2.58040914]
[1767811475936,6.340752,3154.2,3153.0,2.57840914]
[1767811476142,2.54628958,3154.0,3153.0,2.57840914]
[1767811476344,2.57798645,3153.9,3153.0,2.57840914]
[1767811476515,2.54628958,3153.9,3153.0,2.57840914]
[1767811478168,2.54628958,3154.1,3153.1,2.57840914]